fUSD/lending_fUSD_20250609
["ID","MTS","AMOUNT","RATE_DAILY","PERIOD"]
[365171186,1749511846036,-30997.62,0.00016602,2]
[365171187,1749511846046,-613.87,0.00016602,2]
[365171188,1749511846064,-490.0,0.00016602,2]
[365171189,1749511846075,-611.29,0.00016602,2]
[365171190,1749511846085,-490.0,0.00016602,2]
[365171191,1749511846095,-151.0,0.00016602,2]
[365171192,1749511846105,-151.0,0.00016602,2]
[365171193,1749511846115,-490.0,0.00016602,2]
[365171194,1749511846125,-490.0,0.00016602,2]
[365171195,1749511846134,-490.0,0.00016602,2]
[365171196,1749511846145,-513.81,0.00016602,2]
[365171197,1749511846155,-504.39,0.00016602,2]
[365171198,1749511846165,-1292.262258,0.00016602,2]
[365171199,1749511846175,-490.0,0.00016602,2]
[365171200,1749511846186,-1292.262258,0.00016602,2]
[365171201,1749511846196,-1292.262258,0.00016602,2]
[365171202,1749511846206,-557.8,0.00016602,2]
[365171203,1749511846216,-630.91,0.00016602,2]
[365171204,1749511846226,-1292.262258,0.00016602,2]
[365171205,1749511846236,-490.0,0.00016602,2]
[365171206,1749511846247,-1292.262258,0.00016602,2]
[365171207,1749511846257,-1292.262258,0.00016602,2]
[365171209,1749511846268,-490.0,0.00016602,2]
[365171211,1749511846277,-490.0,0.00016602,2]
[365171213,1749511846287,-151.0,0.00016602,2]
[365171215,1749511846297,-151.0,0.00016602,2]
[365171217,1749511846307,-151.0,0.00016602,2]
[365171219,1749511846318,-151.0,0.00016602,2]
[365171221,1749511846328,-594.95,0.00016602,2]
[365171223,1749511846338,-490.0,0.00016602,2]
[365171225,1749511846349,-566.38106345,0.00016602,2]
[365171228,1749511846359,-888.3,0.00016602,2]
[365171230,1749511846369,-151.0,0.00016602,2]
[365171232,1749511846378,-722.69,0.00016602,2]
[365171234,1749511846388,-151.0,0.00016602,2]
[365171236,1749511846398,-1597.29,0.00016602,2]
[365171238,1749511846408,-490.0,0.00016602,2]
[365171240,1749511846417,-151.0,0.00016602,2]
[365171242,1749511846427,-515.27,0.00016602,2]
[365171244,1749511846436,-151.0,0.00016602,2]
[365171246,1749511846446,-523.46,0.00016602,2]
[365171248,1749511846456,-850.96,0.00016602,2]
[365171250,1749511846466,-1191.23,0.00016602,2]
[365171253,1749511846476,-978.66,0.00016602,2]
[365171254,1749511846485,-500.0,0.00016602,2]
[365171257,1749511846495,-500.0,0.0001663,2]
[365171259,1749511846506,-417.21349315,0.00016657,2]
[365171261,1749511846516,-1863.58789516,0.00016674,2]
[365171263,1749511846526,-216.64172155,0.00016767,2]
[365171265,1749511846536,-490.0,0.00016767,2]
[365171267,1749511846546,-490.0,0.00016767,2]
[365171269,1749511846555,-490.0,0.00016767,2]
[365171271,1749511846565,-490.0,0.00016767,2]
[365171273,1749511846575,-528.68,0.00016767,2]
[365171275,1749511846584,-490.0,0.00016767,2]
[365171277,1749511846594,-568.66,0.00016767,2]
[365171279,1749511846604,-490.0,0.00016767,2]
[365171281,1749511846614,-612.88,0.00016767,2]
[365171283,1749511846624,-490.0,0.00016767,2]
[365171285,1749511846634,-490.0,0.00016767,2]
[365171287,1749511846643,-490.0,0.00016767,2]
[365171289,1749511846654,-490.0,0.00016767,2]
[365171291,1749511846663,-490.0,0.00016767,2]
[365171293,1749511846673,-490.0,0.00016767,2]
[365171295,1749511846682,-490.0,0.00016767,2]
[365171297,1749511846692,-490.0,0.00016767,2]
[365171299,1749511846701,-490.0,0.00016767,2]
[365171301,1749511846711,-490.0,0.00016767,2]
[365171303,1749511846721,-490.0,0.00016767,2]
[365171305,1749511846730,-681.27,0.00016767,2]
[365171307,1749511846740,-811.16,0.00016767,2]
[365171309,1749511846749,-490.0,0.00016767,2]
[365171311,1749511846760,-490.0,0.00016767,2]
[365171313,1749511846770,-490.0,0.00016767,2]
[365171315,1749511846780,-490.0,0.00016767,2]
[365171317,1749511846789,-490.0,0.00016767,2]
[365171319,1749511846799,-490.0,0.00016767,2]
[365171321,1749511846809,-490.0,0.00016767,2]
[365171323,1749511846819,-490.0,0.00016767,2]
[365171326,1749511846829,-1203.79,0.00016767,2]
[365171328,1749511846838,-490.0,0.00016767,2]
[365171330,1749511846848,-490.0,0.00016767,2]
[365171332,1749511846857,-490.0,0.00016767,2]
[365171334,1749511846866,-873.43,0.00016767,2]
[365171336,1749511846876,-490.0,0.00016767,2]
[365171338,1749511846886,-490.0,0.00016767,2]
[365171340,1749511846895,-490.0,0.00016767,2]
[365171342,1749511846906,-490.0,0.00016767,2]
[365171343,1749511846915,-490.0,0.00016767,2]
[365171346,1749511846925,-252.21,0.00016767,2]
[365171347,1749511846934,-491.34,0.00016767,2]
[365171349,1749511846943,-490.0,0.00016767,2]
[365171351,1749511846953,-490.0,0.00016767,2]
[365171353,1749511846962,-513.06,0.00016767,2]
[365171355,1749511846972,-490.0,0.00016767,2]
[365171357,1749511846981,-490.0,0.00016767,2]
[365171359,1749511846991,-490.0,0.00016767,2]
[365171361,1749511847000,-490.0,0.00016767,2]
[365171363,1749511847010,-490.0,0.00016767,2]
[365171364,1749511847019,-565.93,0.00016767,2]
[365171365,1749511847029,-490.0,0.00016767,2]
[365171366,1749511847038,-490.0,0.00016767,2]
[365171367,1749511847047,-490.0,0.00016767,2]
[365171368,1749511847057,-490.0,0.00016767,2]
[365171369,1749511847067,-490.0,0.00016767,2]
[365171370,1749511847077,-490.0,0.00016767,2]
[365171371,1749511847087,-490.0,0.00016767,2]
[365171372,1749511847101,-490.0,0.00016767,2]
[365171373,1749511847111,-490.0,0.00016767,2]
[365171374,1749511847121,-490.0,0.00016767,2]
[365171375,1749511847131,-490.0,0.00016767,2]
[365171376,1749511847141,-490.0,0.00016767,2]
[365171377,1749511847151,-490.0,0.00016767,2]
[365171378,1749511847161,-490.0,0.00016767,2]
[365171379,1749511847172,-490.0,0.00016767,2]
[365171380,1749511847182,-686.65,0.00016767,2]
[365171381,1749511847192,-490.0,0.00016767,2]
[365171382,1749511847202,-490.0,0.00016767,2]
[365171383,1749511847212,-490.0,0.00016767,2]
[365171384,1749511847222,-490.0,0.00016767,2]
[365171385,1749511847233,-490.0,0.00016767,2]
[365171386,1749511847243,-490.0,0.00016767,2]
[365171387,1749511847253,-490.0,0.00016767,2]
[365171388,1749511847263,-490.0,0.00016767,2]
[365171389,1749511847273,-756.82,0.00016767,2]
[365171390,1749511847283,-490.0,0.00016767,2]
[365171391,1749511847294,-490.0,0.00016767,2]
[365171392,1749511847304,-626.45,0.00016767,2]
[365171393,1749511847317,-490.0,0.00016767,2]
[365171394,1749511847327,-510.58,0.00016767,2]
[365171395,1749511847336,-490.0,0.00016767,2]
[365171396,1749511847347,-490.0,0.00016767,2]
[365171397,1749511847357,-490.0,0.00016767,2]
[365171398,1749511847367,-536.8,0.00016767,2]
[365171399,1749511847377,-207.09373181,0.00016767,2]
[365171400,1749511847388,-490.0,0.00016767,2]
[365171401,1749511847399,-490.68,0.00016767,2]
[365171402,1749511847409,-490.0,0.00016767,2]
[365171403,1749511847419,-490.0,0.00016767,2]
[365171404,1749511847429,-490.0,0.00016767,2]
[365171405,1749511847439,-666.57,0.00016767,2]
[365171406,1749511847448,-355.74,0.00016767,2]
[365171407,1749511847458,-490.0,0.00016767,2]
[365171408,1749511847468,-151.0,0.00016767,2]
[365171409,1749511847478,-236.555298,0.00016767,2]
[365171410,1749511847488,-490.0,0.00016767,2]
[365171411,1749511847499,-490.0,0.00016767,2]
[365171412,1749511847510,-490.0,0.00016767,2]
[365171413,1749511847520,-490.0,0.00016767,2]
[365171414,1749511847530,-151.0,0.00016767,2]
[365171415,1749511847540,-490.0,0.00016767,2]
[365171416,1749511847550,-151.0,0.00016767,2]
[365171417,1749511847559,-151.0,0.00016767,2]
[365171418,1749511847693,-490.0,0.00016767,2]
[365171419,1749511847703,-490.0,0.00016767,2]
[365171420,1749511847713,-490.0,0.00016767,2]
[365171421,1749511847722,-490.0,0.00016767,2]
[365171422,1749511847732,-490.0,0.00016767,2]
[365171423,1749511847741,-490.0,0.00016767,2]
[365171424,1749511847750,-228.588123,0.00016767,2]
[365171425,1749511847761,-905.53,0.00016767,2]
[365171426,1749511847772,-490.0,0.00016767,2]
[365171427,1749511847784,-543.99,0.00016767,2]
[365171428,1749511847794,-490.0,0.00016767,2]
[365171429,1749511847804,-490.0,0.00016767,2]
[365171430,1749511847814,-490.0,0.00016767,2]
[365171431,1749511847823,-490.0,0.00016767,2]
[365171432,1749511847833,-490.0,0.00016767,2]
[365171433,1749511847842,-1195.08,0.00016767,2]
[365171434,1749511847852,-490.0,0.00016767,2]
[365171435,1749511847861,-490.0,0.00016767,2]
[365171436,1749511847871,-561.17,0.00016767,2]
[365171437,1749511847880,-490.0,0.00016767,2]
[365171438,1749511847889,-490.0,0.00016767,2]
[365171439,1749511847899,-490.0,0.00016767,2]
[365171440,1749511847908,-490.0,0.00016767,2]
[365171441,1749511847918,-212.89536609,0.00016767,2]
[365171442,1749511847928,-815.01,0.00016767,2]
[365171443,1749511847938,-518.23,0.00016767,2]
[365171444,1749511847947,-547.19,0.00016767,2]
[365171445,1749511847956,-1508.01,0.00016767,2]
[365171446,1749511847966,-490.0,0.00016767,2]
[365171447,1749511847976,-490.0,0.00016767,2]
[365171448,1749511847984,-490.0,0.00016767,2]
[365171449,1749511847993,-490.0,0.00016767,2]
[365171450,1749511848001,-2593.63,0.00016767,2]
[365171451,1749511848011,-490.0,0.00016767,2]
[365171452,1749511848020,-1114.94,0.00016767,2]
[365171453,1749511848030,-490.0,0.00016767,2]
[365171454,1749511848039,-490.0,0.00016767,2]
[365171455,1749511848049,-1002.67,0.00016767,2]
[365171456,1749511848058,-490.0,0.00016767,2]
[365171457,1749511848068,-490.0,0.00016767,2]
[365171458,1749511848078,-151.0,0.00016767,2]
[365171459,1749511848088,-1295.21,0.00016767,2]
[365171460,1749511848097,-151.0,0.00016767,2]
[365171461,1749511848107,-151.0,0.00016767,2]
[365171462,1749511848116,-490.0,0.00016767,2]
[365171463,1749511848126,-490.0,0.00016767,2]
[365171464,1749511848139,-490.0,0.00016767,2]
[365171465,1749511848148,-490.0,0.00016767,2]
[365171466,1749511848158,-490.0,0.00016767,2]
[365171467,1749511848168,-151.0,0.00016767,2]
[365171468,1749511848178,-490.0,0.00016767,2]
[365171469,1749511848188,-546.21,0.00016767,2]
[365171470,1749511848198,-490.0,0.00016767,2]
[365171471,1749511848208,-490.0,0.00016767,2]
[365171472,1749511848218,-740.01,0.00016767,2]
[365171473,1749511848228,-490.0,0.00016767,2]
[365171474,1749511848238,-490.0,0.00016767,2]
[365171475,1749511848247,-490.0,0.00016767,2]
[365171476,1749511848257,-490.0,0.00016767,2]
[365171477,1749511848267,-626.45,0.00016767,2]
[365171478,1749511848277,-490.0,0.00016767,2]
[365171479,1749511848288,-490.0,0.00016767,2]
[365171480,1749511848297,-535.83,0.00016767,2]
[365171481,1749511848311,-759.85,0.00016767,2]
[365171482,1749511848320,-490.0,0.00016767,2]
[365171483,1749511848330,-490.0,0.00016767,2]
[365171484,1749511848340,-490.0,0.00016767,2]
[365171485,1749511848350,-1329.3,0.00016767,2]
[365171486,1749511848359,-490.0,0.00016767,2]
[365171487,1749511848369,-527.31,0.00016767,2]
[365171488,1749511848379,-490.0,0.00016767,2]
[365171489,1749511848390,-490.0,0.00016767,2]
[365171490,1749511848400,-490.0,0.00016767,2]
[365171491,1749511848409,-490.0,0.00016767,2]
[365171492,1749511848421,-490.0,0.00016767,2]
[365171493,1749511848433,-490.0,0.00016767,2]
[365171494,1749511848442,-512.92,0.00016767,2]
[365171495,1749511848451,-616.16,0.00016767,2]
[365171496,1749511848460,-1264.3,0.00016767,2]
[365171497,1749511848470,-490.0,0.00016767,2]
[365171498,1749511848481,-490.0,0.00016767,2]
[365171499,1749511848490,-490.0,0.00016767,2]
[365171500,1749511848500,-610.13,0.00016767,2]
[365171501,1749511848510,-660.15,0.00016767,2]
[365171502,1749511848519,-1121.41,0.00016767,2]
[365171503,1749511848529,-498.87,0.00016767,2]
[365171504,1749511848539,-555.04,0.00016767,2]
[365171505,1749511848549,-764.26,0.00016767,2]
[365171506,1749511848559,-672.84,0.00016767,2]
[365171507,1749511848569,-627.49,0.00016767,2]
[365171508,1749511848579,-1275.4,0.00016767,2]
[365171509,1749511848589,-490.0,0.00016767,2]
[365171510,1749511848598,-490.0,0.00016767,2]
[365171511,1749511848608,-772.9,0.00016767,2]
[365171512,1749511848617,-490.0,0.00016767,2]
[365171513,1749511848627,-1208.78,0.00016767,2]
[365171514,1749511848637,-490.0,0.00016767,2]
[365171515,1749511848646,-490.0,0.00016767,2]
[365171516,1749511848656,-490.0,0.00016767,2]
[365171517,1749511848666,-490.0,0.00016767,2]
[365171518,1749511848675,-506.43,0.00016767,2]
[365171519,1749511848686,-490.0,0.00016767,2]
[365171520,1749511848695,-490.0,0.00016767,2]
[365171521,1749511848705,-502.19,0.00016767,2]
[365171522,1749511848714,-490.0,0.00016767,2]
[365171523,1749511848724,-3249.0,0.00016767,2]
[365171524,1749511848733,-634.37,0.00016767,2]
[365171525,1749511848743,-800.68,0.00016767,2]
[365171526,1749511848752,-490.0,0.00016767,2]
[365171527,1749511848762,-151.0,0.00016767,2]
[365171528,1749511848771,-151.0,0.00016767,2]
[365171529,1749511848780,-151.0,0.00016767,2]
[365171530,1749511848790,-151.0,0.00016767,2]
[365171531,1749511848800,-490.0,0.00016767,2]
[365171532,1749511848810,-896.11,0.00016767,2]
[365171533,1749511848819,-490.0,0.00016767,2]
[365171534,1749511848829,-681.52,0.00016767,2]
[365171535,1749511848838,-490.0,0.00016767,2]
[365171536,1749511848848,-490.0,0.00016767,2]
[365171537,1749511848857,-2965.23,0.00016767,2]
[365171538,1749511848867,-490.0,0.00016767,2]
[365171539,1749511848876,-490.0,0.00016767,2]
[365171540,1749511848886,-490.0,0.00016767,2]
[365171541,1749511848895,-490.0,0.00016767,2]
[365171542,1749511848905,-490.0,0.00016767,2]
[365171543,1749511848914,-719.75,0.00016767,2]
[365171544,1749511848924,-151.0,0.00016767,2]
[365171545,1749511848933,-151.0,0.00016767,2]
[365171546,1749511848943,-151.0,0.00016767,2]
[365171547,1749511848953,-490.0,0.00016767,2]
[365171548,1749511848962,-490.0,0.00016767,2]
[365171549,1749511848972,-616.58,0.00016767,2]
[365171550,1749511848982,-490.0,0.00016767,2]
[365171551,1749511848991,-490.0,0.00016767,2]
[365171552,1749511849000,-497.74,0.00016767,2]
[365171553,1749511849010,-730.14,0.00016767,2]
[365171554,1749511849019,-490.0,0.00016767,2]
[365171555,1749511849029,-582.3,0.00016767,2]
[365171556,1749511849038,-1070.79,0.00016767,2]
[365171557,1749511849048,-490.0,0.00016767,2]
[365171558,1749511849057,-839.92,0.00016767,2]
[365171559,1749511849067,-686.6,0.00016767,2]
[365171560,1749511849076,-501.75,0.00016767,2]
[365171561,1749511849086,-490.0,0.00016767,2]
[365171562,1749511849095,-490.0,0.00016767,2]
[365171563,1749511849104,-490.0,0.00016767,2]
[365171564,1749511849113,-1307.39,0.00016767,2]
[365171565,1749511849123,-30997.62,0.00016767,2]
[365171566,1749511849132,-613.87,0.00016767,2]
[365171567,1749511849141,-490.0,0.00016767,2]
[365171568,1749511849151,-611.29,0.00016767,2]
[365171569,1749511849161,-490.0,0.00016767,2]
[365171570,1749511849170,-490.0,0.00016767,2]
[365171571,1749511849179,-490.0,0.00016767,2]
[365171572,1749511849189,-490.0,0.00016767,2]
[365171573,1749511849199,-513.81,0.00016767,2]
[365171574,1749511849208,-504.39,0.00016767,2]
[365171575,1749511849218,-490.0,0.00016767,2]
[365171576,1749511849231,-1292.262258,0.00016767,2]
[365171577,1749511849240,-1292.262258,0.00016767,2]
[365171578,1749511849249,-1292.262258,0.00016767,2]
[365171579,1749511849259,-1292.262258,0.00016767,2]
[365171580,1749511849268,-557.8,0.00016767,2]
[365171581,1749511849278,-630.91,0.00016767,2]
[365171582,1749511849287,-490.0,0.00016767,2]
[365171583,1749511849297,-1292.262258,0.00016767,2]
[365171584,1749511849307,-1292.262258,0.00016767,2]
[365171585,1749511849318,-1292.262258,0.00016767,2]
[365171586,1749511849328,-490.0,0.00016767,2]
[365171587,1749511849338,-1292.262258,0.00016767,2]
[365171588,1749511849347,-490.0,0.00016767,2]
[365171589,1749511849358,-151.0,0.00016767,2]
[365171590,1749511849369,-151.0,0.00016767,2]
[365171591,1749511849379,-151.0,0.00016767,2]
[365171592,1749511849389,-594.95,0.00016767,2]
[365171593,1749511849399,-151.0,0.00016767,2]
[365171594,1749511849409,-490.0,0.00016767,2]
[365171595,1749511849419,-888.3,0.00016767,2]
[365171596,1749511849429,-722.69,0.00016767,2]
[365171597,1749511849439,-1597.29,0.00016767,2]
[365171598,1749511849449,-490.0,0.00016767,2]
[365171599,1749511849458,-515.27,0.00016767,2]
[365171600,1749511849468,-151.0,0.00016767,2]
[365171601,1749511849478,-151.0,0.00016767,2]
[365171602,1749511849487,-151.0,0.00016767,2]
[365171603,1749511849497,-245.171074,0.00016767,2]
[365171604,1749511849507,-523.46,0.00016767,2]
[365171605,1749511849517,-850.96,0.00016767,2]
[365171606,1749511849527,-1191.23,0.00016767,2]
[365171607,1749511849537,-978.66,0.00016767,2]
[365171608,1749511849547,-1863.58789516,0.00016845,2]
[365171609,1749511849558,-9496.90321211,0.00016849,2]
[365171610,1749511849568,-159.89837979,0.00016885,2]
[365171611,1749511849579,-159.89902739,0.00016885,2]
[365171612,1749511849590,-504.26120495,0.00016885,2]
[365171613,1749511849600,-151.0,0.00016892,2]
[365171614,1749511849610,-490.0,0.00016931,2]
[365171615,1749511849621,-490.0,0.00016931,2]
[365171616,1749511849631,-490.0,0.00016931,2]
[365171617,1749511849641,-490.0,0.00016931,2]
[365171618,1749511849651,-528.68,0.00016931,2]
[365171619,1749511849661,-490.0,0.00016931,2]
[365171620,1749511849671,-568.66,0.00016931,2]
[365171621,1749511849681,-490.0,0.00016931,2]
[365171622,1749511849692,-612.88,0.00016931,2]
[365171623,1749511849702,-490.0,0.00016931,2]
[365171624,1749511849711,-490.0,0.00016931,2]
[365171625,1749511849721,-490.0,0.00016931,2]
[365171626,1749511849730,-490.0,0.00016931,2]
[365171627,1749511849741,-490.0,0.00016931,2]
[365171628,1749511849750,-490.0,0.00016931,2]
[365171629,1749511849761,-490.0,0.00016931,2]
[365171630,1749511849770,-490.0,0.00016931,2]
[365171631,1749511849781,-490.0,0.00016931,2]
[365171632,1749511849791,-576.6667183,0.00016931,2]
[365171633,1749511849800,-496.8587137,0.00016931,2]
[365171634,1749511849811,-681.27,0.00016931,2]
[365171635,1749511849820,-811.16,0.00016931,2]
[365171636,1749511849830,-202.17896605,0.00016931,2]
[365171637,1749511849839,-490.0,0.00016931,2]
[365171638,1749511849849,-490.0,0.00016931,2]
[365171639,1749511849858,-490.0,0.00016931,2]
[365171640,1749511849867,-490.0,0.00016931,2]
[365171641,1749511849877,-490.0,0.00016931,2]
[365171642,1749511849886,-490.0,0.00016931,2]
[365171643,1749511849896,-490.0,0.00016931,2]
[365171644,1749511849905,-1203.79,0.00016931,2]
[365171645,1749511849916,-247.17680337,0.00016931,2]
[365171646,1749511849926,-490.0,0.00016931,2]
[365171647,1749511849935,-490.0,0.00016931,2]
[365171648,1749511849944,-873.43,0.00016931,2]
[365171649,1749511849954,-546.84206807,0.00016931,2]
[365171650,1749511849963,-490.0,0.00016931,2]
[365171651,1749511849973,-490.0,0.00016931,2]
[365171652,1749511849983,-202.88253377,0.00016931,2]
[365171653,1749511849993,-490.0,0.00016931,2]
[365171654,1749511850003,-490.0,0.00016931,2]
[365171655,1749511850013,-491.34,0.00016931,2]
[365171656,1749511850023,-490.0,0.00016931,2]
[365171657,1749511850033,-490.0,0.00016931,2]
[365171658,1749511850043,-513.06,0.00016931,2]
[365171659,1749511850052,-490.0,0.00016931,2]
[365171660,1749511850061,-223.704309,0.00016931,2]
[365171661,1749511850071,-490.0,0.00016931,2]
[365171662,1749511850081,-490.0,0.00016931,2]
[365171663,1749511850091,-490.0,0.00016931,2]
[365171664,1749511850100,-490.0,0.00016931,2]
[365171665,1749511850110,-565.93,0.00016931,2]
[365171666,1749511850119,-490.0,0.00016931,2]
[365171667,1749511850129,-490.0,0.00016931,2]
[365171668,1749511850138,-490.0,0.00016931,2]
[365171669,1749511850148,-490.0,0.00016931,2]
[365171670,1749511850157,-490.0,0.00016931,2]
[365171671,1749511850166,-490.0,0.00016931,2]
[365171672,1749511850176,-490.0,0.00016931,2]
[365171673,1749511850186,-490.0,0.00016931,2]
[365171674,1749511850195,-490.0,0.00016931,2]
[365171675,1749511850205,-490.0,0.00016931,2]
[365171676,1749511850214,-490.0,0.00016931,2]
[365171677,1749511850223,-490.0,0.00016931,2]
[365171678,1749511850233,-490.0,0.00016931,2]
[365171679,1749511850243,-490.0,0.00016931,2]
[365171680,1749511850258,-490.0,0.00016931,2]
[365171681,1749511850268,-686.65,0.00016931,2]
[365171682,1749511850278,-490.0,0.00016931,2]
[365171683,1749511850288,-490.0,0.00016931,2]
[365171684,1749511850297,-490.0,0.00016931,2]
[365171685,1749511850308,-490.0,0.00016931,2]
[365171686,1749511850319,-490.0,0.00016931,2]
[365171687,1749511850329,-490.0,0.00016931,2]
[365171688,1749511850339,-490.0,0.00016931,2]
[365171689,1749511850350,-490.0,0.00016931,2]
[365171690,1749511850359,-756.82,0.00016931,2]
[365171691,1749511850370,-490.0,0.00016931,2]
[365171692,1749511850380,-357.99081725,0.00016931,2]
[365171693,1749511850392,-626.45,0.00016931,2]
[365171694,1749511850403,-490.0,0.00016931,2]
[365171695,1749511850413,-510.58,0.00016931,2]
[365171696,1749511850423,-490.0,0.00016931,2]
[365171697,1749511850433,-490.0,0.00016931,2]
[365171698,1749511850443,-490.0,0.00016931,2]
[365171699,1749511850453,-536.8,0.00016931,2]
[365171700,1749511850463,-490.0,0.00016931,2]
[365171701,1749511850473,-490.68,0.00016931,2]
[365171702,1749511850483,-490.0,0.00016931,2]
[365171703,1749511850492,-490.0,0.00016931,2]
[365171704,1749511850502,-490.0,0.00016931,2]
[365171705,1749511850511,-666.57,0.00016931,2]
[365171706,1749511850521,-490.0,0.00016931,2]
[365171707,1749511850531,-490.0,0.00016931,2]
[365171708,1749511850540,-490.0,0.00016931,2]
[365171709,1749511850550,-490.0,0.00016931,2]
[365171710,1749511850561,-304.80319531,0.00016931,2]
[365171711,1749511850571,-490.0,0.00016931,2]
[365171712,1749511850580,-151.0,0.00016931,2]
[365171713,1749511850590,-151.0,0.00016931,2]
[365171714,1749511850599,-151.0,0.00016931,2]
[365171715,1749511850610,-490.0,0.00016931,2]
[365171716,1749511850620,-490.0,0.00016931,2]
[365171717,1749511850630,-490.0,0.00016931,2]
[365171718,1749511850640,-490.0,0.00016931,2]
[365171719,1749511850651,-490.0,0.00016931,2]
[365171720,1749511850660,-490.0,0.00016931,2]
[365171721,1749511850670,-905.53,0.00016931,2]
[365171722,1749511850681,-490.0,0.00016931,2]
[365171723,1749511850690,-543.99,0.00016931,2]
[365171724,1749511850701,-490.0,0.00016931,2]
[365171725,1749511850711,-490.0,0.00016931,2]
[365171726,1749511850721,-490.0,0.00016931,2]
[365171727,1749511850731,-490.0,0.00016931,2]
[365171728,1749511850741,-490.0,0.00016931,2]
[365171729,1749511850753,-1195.08,0.00016931,2]
[365171730,1749511850763,-490.0,0.00016931,2]
[365171731,1749511850773,-485.18,0.00016931,2]
[365171732,1749511850783,-561.17,0.00016931,2]
[365171733,1749511850792,-490.0,0.00016931,2]
[365171734,1749511850802,-490.0,0.00016931,2]
[365171735,1749511850812,-600.12984502,0.00016931,2]
[365171736,1749511850822,-490.0,0.00016931,2]
[365171737,1749511850831,-815.01,0.00016931,2]
[365171738,1749511850841,-518.23,0.00016931,2]
[365171739,1749511850853,-547.19,0.00016931,2]
[365171740,1749511850863,-1508.01,0.00016931,2]
[365171741,1749511850872,-490.0,0.00016931,2]
[365171742,1749511850881,-490.0,0.00016931,2]
[365171743,1749511850891,-490.0,0.00016931,2]
[365171744,1749511850901,-490.0,0.00016931,2]
[365171745,1749511850911,-2593.63,0.00016931,2]
[365171746,1749511850920,-490.0,0.00016931,2]
[365171747,1749511850930,-1114.94,0.00016931,2]
[365171748,1749511850939,-490.0,0.00016931,2]
[365171749,1749511850949,-490.0,0.00016931,2]
[365171750,1749511850959,-1002.67,0.00016931,2]
[365171751,1749511850968,-490.0,0.00016931,2]
[365171752,1749511850978,-490.0,0.00016931,2]
[365171753,1749511850987,-1295.21,0.00016931,2]
[365171754,1749511850996,-151.0,0.00016931,2]
[365171755,1749511851006,-490.0,0.00016931,2]
[365171756,1749511851015,-151.0,0.00016931,2]
[365171757,1749511851024,-490.0,0.00016931,2]
[365171758,1749511851034,-490.0,0.00016931,2]
[365171759,1749511851043,-490.0,0.00016931,2]
[365171760,1749511851052,-490.0,0.00016931,2]
[365171761,1749511851061,-490.0,0.00016931,2]
[365171762,1749511851070,-546.21,0.00016931,2]
[365171763,1749511851079,-490.0,0.00016931,2]
[365171764,1749511851088,-490.0,0.00016931,2]